fUSD/lending_fUSD_20250720
["ID","MTS","AMOUNT","RATE_DAILY","PERIOD"]
[373430764,1753003843225,-1525.70765002,0.00017782,2]
[373430766,1753003843237,-37924.98467999,0.00017782,2]
[373430768,1753003843248,-3514.21554877,0.00017782,2]
[373430769,1753003843259,-19834.74588294,0.00017782,2]
[373430770,1753003843383,-185961.88649982,0.00017782,2]
[373430771,1753003843442,-12677.605,0.00017782,2]
[373430772,1753003843553,-409.18974692,0.00017782,2]
[373430773,1753003843565,-2361.87392734,0.00017782,2]
[373430774,1753003843576,-4340.5479779,0.00017782,2]
[373430775,1753003843587,-5989.00899816,0.00017782,2]
[373430776,1753003843600,-859.89631691,0.00017782,2]
[373430777,1753003843633,-627.51999998,0.00017782,2]
[373430784,1753003846362,-546.006,0.00017782,2]
[373430785,1753003846419,-3809.58892304,0.00017782,2]
[373430786,1753003846486,-601.6529264,0.00017782,2]
[373430787,1753003846498,-830.54956271,0.00017782,2]
[373430788,1753003846532,-983.50377013,0.00017782,2]
[373430789,1753003846589,-265.21923202,0.00017782,2]
[373430790,1753003846646,-2014.4,0.00017782,2]
[373430791,1753003910522,250.0,0.00015,2]
[373430792,1753003923796,150.0,0.00015849,2]
[373430793,1753003954239,153.55,0.000229,31]
[373430794,1753003954297,153.55,0.000229,31]
[373430795,1753003954355,153.55,0.000229,31]
[373430796,1753003954428,153.55,0.000229,31]
[373430797,1753003954771,153.55,0.000229,31]
[373430798,1753003954841,153.55,0.000229,31]
[373430799,1753003954904,153.55,0.000229,31]
[373430800,1753003954975,153.55,0.000229,31]
[373430801,1753003955038,153.55,0.000229,31]
[373430802,1753003955105,153.55,0.000229,31]
[373430803,1753003955164,153.55,0.000229,31]
[373430804,1753003955229,153.55,0.000229,31]
[373430805,1753003955294,153.55,0.000229,31]
[373430806,1753003955369,153.55,0.000229,31]
[373430809,1753003984041,150.0,0.00015732,2]
[373430810,1753004020233,757.52461348,0.00030137,120]
[373430812,1753004069194,1193.66,0.00024854,120]
[373430813,1753004091491,150.0,0.0001,2]
[373430814,1753004106386,500.0,0.00030137,120]
[373430816,1753004374228,1000.0,0.0003,120]
[373430817,1753004375141,1000.0,0.0003,120]
[373430818,1753004375851,1000.0,0.0003,120]
[373430819,1753004376379,1000.0,0.0003,120]
[373430820,1753004509176,3741.82,0.00030136,120]
[373430821,1753004563195,153.57,0.000229,31]
[373430822,1753004563266,153.57,0.000229,31]
[373430823,1753004563520,153.57,0.000229,31]
[373430824,1753004563633,153.57,0.000229,31]
[373430825,1753004563820,153.57,0.000229,31]
[373430826,1753004564027,153.57,0.000229,31]
[373430827,1753004564151,153.57,0.000229,31]
[373430828,1753004564242,153.57,0.000229,31]
[373430829,1753004564381,153.57,0.000229,31]
[373430830,1753004564527,153.57,0.000229,31]
[373430831,1753004564633,153.57,0.000229,31]
[373430832,1753004564746,153.57,0.000229,31]
[373430833,1753004564876,153.57,0.000229,31]
[373430834,1753004564996,153.57,0.000229,31]
[373430835,1753004587682,150.0,0.00030136,120]
[373430836,1753004682462,-196.94724678,0.00016108,2]
[373430837,1753004684219,-204.31923836,0.00016108,2]
[373430840,1753004805606,267.33,0.00013699,2]
[373430843,1753004922219,-150.0,0.00016003,2]
[373430844,1753004922242,-150.0,0.00016003,2]
[373430845,1753004922263,-150.0,0.00016003,2]
[373430846,1753004922285,-185.21436977,0.00016029,2]
[373430864,1753005032375,-64.78563023,0.00016029,2]
[373430865,1753005032385,-1000.0,0.00016056,2]
[373430866,1753005032394,-398.5,0.00016169,2]
[373430867,1753005032404,-1200.0,0.00016287,2]
[373430868,1753005032413,-500.0,0.00016288,2]
[373430869,1753005032422,-500.0,0.00016288,2]
[373430870,1753005032432,-500.0,0.00016288,2]
[373430871,1753005032443,-500.0,0.00016288,2]
[373430872,1753005032452,-500.0,0.00016288,2]
[373430873,1753005032461,-500.0,0.00016288,2]
[373430874,1753005032471,-500.0,0.00016288,2]
[373430875,1753005032480,-500.0,0.00016288,2]
[373430876,1753005032489,-23900.0,0.00016298,2]
[373430877,1753005032499,-164.94,0.00016326,2]
[373430878,1753005032508,-1000.0,0.00016344,2]
[373430879,1753005032518,-2000.0,0.0001638,2]
[373430880,1753005032527,-1902.27,0.0001642,2]
[373430881,1753005032536,-508.3,0.00016438,2]
[373430882,1753005032545,-600.0,0.00016438,2]
[373430883,1753005032554,-615.71722561,0.00016438,2]
[373430884,1753005032564,-150.0,0.00016508,2]
[373430885,1753005032573,-186.97,0.00016529,2]
[373430886,1753005032583,-1193.66,0.00016569,2]
[373430887,1753005032592,-317.9471673,0.00016585,2]
[373430888,1753005032602,-19786.63886073,0.00016586,2]
[373430889,1753005032611,-795.13,0.00016621,2]
[373430890,1753005032620,-231.28369723,0.00016695,2]
[373430891,1753005032630,-7142.856,0.00016695,2]
[373430892,1753005032639,-282.0,0.00016986,3]
[373430893,1753005032654,-160.20073536,0.00017,3]
[373430894,1753005032666,-600.0,0.00017119,2]
[373430895,1753005032675,-600.0,0.00017119,2]
[373430896,1753005032686,-600.0,0.00017119,2]
[373430897,1753005032696,-600.0,0.00017119,2]
[373430898,1753005032705,-150.0,0.00017217,2]
[373430899,1753005032714,-168.65,0.00017222,2]
[373430900,1753005032725,-4799.46947987,0.00017243,2]
[373430901,1753005032736,-7407.141672,0.00017243,2]
[373430902,1753005032746,-150.0,0.00017258,2]
[373430903,1753005032756,-150.0,0.00017347,2]
[373430904,1753005032765,-868.43899188,0.00017396,2]
[373430905,1753005032775,-389.021387,0.00017426,2]
[373430906,1753005032785,-3318.33426581,0.00017435,2]
[373430907,1753005032794,-150.0,0.00017494,2]
[373430909,1753005032803,-508.0,0.000175,2]
[373430910,1753005032812,-1300.0,0.0001752,2]
[373430911,1753005032822,-12062.28961731,0.00017559,2]
[373430912,1753005032831,-150.0,0.0001757,2]
[373430913,1753005032840,-539.13933974,0.00017582,2]
[373430914,1753005032849,-150.0,0.00017598,2]
[373430915,1753005032859,-250.0,0.00017603,2]
[373430916,1753005032868,-1000.0,0.00017603,2]
[373430917,1753005032877,-250.0,0.00017603,2]
[373430918,1753005032887,-150.0,0.00017603,2]
[373430919,1753005032897,-1000.0,0.00017603,2]
[373430920,1753005032907,-21980.74158533,0.0001765,2]
[373430921,1753005032978,-302.52541931,0.0001765,2]
[373430922,1753005032992,-4439.07450536,0.0001765,2]
[373430923,1753005033006,-5221.99280524,0.0001765,2]
[373430925,1753005033027,-12327.63807954,0.0001765,2]
[373430927,1753005033037,-737.1152,0.00017678,2]
[373430929,1753005033047,-4546.6798,0.00017682,2]
[373430931,1753005033057,-163.47888039,0.00017682,2]
[373430933,1753005033067,-202.64106611,0.00017682,2]
[373430935,1753005033077,-3274.15027828,0.00017682,2]
[373430937,1753005033087,-152.31117119,0.00017688,2]
[373430939,1753005033097,-150.0,0.00017688,2]
[373430941,1753005033106,-500.0,0.00017688,2]
[373430943,1753005033116,-1892.0,0.00017688,2]
[373430945,1753005033126,-150.0,0.00017688,2]
[373430947,1753005033137,-500.0,0.00017688,2]
[373430949,1753005033148,-1042.0,0.00017688,2]
[373430951,1753005033158,-539.13933965,0.00017688,2]
[373430953,1753005033168,-150.0,0.00017717,2]
[373430955,1753005033178,-500.0,0.00017773,2]
[373430957,1753005033187,-500.0,0.00017773,2]
[373430959,1753005033198,-500.0,0.00017773,2]
[373430961,1753005033208,-500.0,0.00017773,2]
[373430963,1753005033218,-455.9349861,0.00017773,2]
[373430965,1753005033228,-2980.76569134,0.00017777,2]
[373430967,1753005033238,-2556.692,0.00017778,2]
[373430969,1753005033248,-164.506,0.00017778,2]
[373430971,1753005033258,-150.0,0.00017778,2]
[373430973,1753005033268,-150.0,0.00017778,2]
[373430975,1753005033277,-500.0,0.00017778,2]
[373430977,1753005033286,-539.0,0.00017778,2]
[373430979,1753005033296,-500.0,0.00017778,2]
[373430981,1753005033305,-500.0,0.00017778,2]
[373430983,1753005033315,-150.0,0.00017778,2]
[373430985,1753005033324,-272.5041352,0.00017778,2]
[373430987,1753005033334,-16272.5614297,0.00017778,2]
[373430989,1753005033345,-30172.03611506,0.00017778,2]
[373431066,1753005039058,-1189.4,0.00017778,2]
[373431067,1753005039098,-3497.4,0.00017778,2]
[373431068,1753005039131,-3636.3789377,0.00017778,2]
[373431069,1753005039143,-1258.80576818,0.00017778,2]
[373431175,1753005040341,-1352.91388569,0.00017778,2]
[373431182,1753005040396,-354.09,0.00017778,2]
[373431221,1753005040774,-48729.07442457,0.00017778,2]
[373431223,1753005040783,-2729.787428,0.00017778,2]
[373431225,1753005040792,-500.0,0.00017781,2]
[373431227,1753005040801,-498.2994,0.00017781,2]
[373431229,1753005040811,-500.0,0.00017781,2]
[373431231,1753005040820,-150.0,0.00017781,2]
[373431233,1753005040830,-160.613998,0.00017781,2]
[373431235,1753005040839,-484.88693602,0.00017781,2]
[373431237,1753005040849,-220.04904006,0.00017781,2]
[373431239,1753005040858,-300.0,0.00017781,2]
[373431241,1753005040867,-300.0,0.00017781,2]
[373431243,1753005040876,-537196.82170923,0.00017782,2]
[373431245,1753005040885,-14418.96928696,0.00017782,2]
[373431247,1753005040895,-1340434.13298602,0.00017782,2]
[373431447,1753005043400,-173.21483443,0.00017682,2]
[373431448,1753005043409,-5833.54635535,0.00017782,2]
[373431449,1753005043420,-17837.74067872,0.00017782,2]
[373431450,1753005043581,-556695.00000468,0.00017782,2]
[373431451,1753005043613,-14842.0,0.00017782,2]
[373431452,1753005043668,-2524.6229,0.00017782,2]
[373431453,1753005043778,-6088.65219856,0.00017782,2]
[373431454,1753005043830,-6723.98905184,0.00017782,2]
[373431455,1753005043842,-1517.62708658,0.00017782,2]
[373431491,1753005046518,-874.275,0.00017782,2]
[373431492,1753005046573,-4466.72534729,0.00017782,2]
[373431493,1753005046627,-687.45204412,0.00017782,2]
[373431494,1753005046737,-34048.80991019,0.00017782,2]
[373431497,1753005119762,883.8,0.00025324,120]
[373431498,1753005170356,153.59,0.000229,31]
[373431499,1753005170416,153.59,0.000229,31]
[373431500,1753005170482,153.59,0.000229,31]
[373431501,1753005170545,153.59,0.000229,31]
[373431502,1753005170603,153.59,0.000229,31]
[373431503,1753005170674,153.59,0.000229,31]
[373431504,1753005170798,153.59,0.000229,31]
[373431505,1753005177574,406.89860514,0.0003013,120]
[373431506,1753005294667,10027.0,0.00023,30]
[373431507,1753005519041,150.0,0.00030136,120]
[373431508,1753005539354,511.0,0.00015797,2]
[373431509,1753005624328,2000.0,0.00016634,120]
[373431510,1753005712801,250.0,0.00015,2]
[373431511,1753005776288,153.61,0.000229,31]
[373431512,1753005776348,153.61,0.000229,31]
[373431513,1753005776756,153.61,0.000229,31]
[373431514,1753005776817,153.61,0.000229,31]
[373431515,1753005776874,153.61,0.000229,31]
[373431516,1753005776945,153.61,0.000229,31]
[373431517,1753005777054,518.0,0.0003,120]
[373431518,1753005789541,400.0,0.0003,120]
[373431519,1753005798060,253.96,0.00013699,2]
[373431521,1753005809773,400.0,0.0003,120]
[373431522,1753005824299,250.0,0.0003,120]
[373431526,1753006029624,1000.0,0.00030136,120]
[373431527,1753006042382,1000.0,0.00030136,120]
[373431528,1753006132053,398.0,0.00016,2]
[373431539,1753006207482,163.04459742,0.00030136,120]
[373431541,1753006231573,-428.79,0.00016468,2]
[373431542,1753006231583,-250.0,0.00016521,2]
[373431543,1753006231593,-605.72549566,0.00016544,2]
[373431544,1753006231792,-394.27450434,0.00016544,2]
[373431545,1753006231802,-150.0,0.0001657,2]
[373431546,1753006231811,-1000.0,0.00016576,2]
[373431547,1753006231821,-152.51,0.00016609,2]
[373431548,1753006231831,-1200.0,0.0001664,2]
[373431550,1753006231841,-300.0,0.0001664,2]
[373431552,1753006231850,-233.41831213,0.00016641,2]
[373431553,1753006231860,-500.0,0.00016641,2]
[373431555,1753006231870,-500.0,0.00016641,2]
[373431556,1753006231879,-500.0,0.00016641,2]
[373431557,1753006231889,-500.0,0.00016641,2]
[373431559,1753006231899,-500.0,0.00016641,2]
[373431561,1753006231908,-500.0,0.00016641,2]
[373431562,1753006231918,-8806.09636869,0.00016651,2]
[373431565,1753006231930,-25435.50363131,0.00016651,2]
[373431566,1753006231939,-199.25,0.00016657,2]
[373431568,1753006231950,-12122.42,0.00016717,2]
[373431570,1753006231959,-1000.0,0.0001678,2]
[373431572,1753006231968,-883.8,0.00016883,2]
[373431574,1753006231978,-346.92554585,0.00016892,2]
[373431575,1753006231987,-7142.856,0.00016892,2]
[373431576,1753006231999,-231.28369723,0.00016892,2]
[373431577,1753006232010,-166.2,0.00016948,2]
[373431578,1753006232019,-10000.0,0.00017,2]
[373431579,1753006232029,-428.79,0.00017291,2]
[373431580,1753006232039,-324.184489,0.00017426,2]
[373431581,1753006232049,-7407.141672,0.0001744,2]
[373431582,1753006232059,-5194.61634859,0.000175,2]
[373431583,1753006232070,-514.0,0.000175,2]
[373431584,1753006232091,-600.0,0.00017516,2]
[373431585,1753006232101,-600.0,0.00017516,2]
[373431587,1753006232111,-600.0,0.00017516,2]
[373431588,1753006232121,-183.37,0.00017516,2]
[373431589,1753006232131,-874.88521582,0.00017518,2]
[373431590,1753006232141,-214.0,0.00017527,2]
[373431591,1753006232151,-3984.01,0.00017582,2]
[373431592,1753006232161,-1305.5619,0.00017582,2]
[373431593,1753006232171,-546.41278061,0.00017678,2]
[373431594,1753006232181,-177.31093282,0.00017681,2]
[373431595,1753006232191,-1631.7689,0.00017682,2]
[373431596,1753006232201,-173.21483441,0.00017682,2]
[373431597,1753006232211,-163.47888036,0.00017682,2]
[373431598,1753006232221,-2045.353,0.00017692,2]
[373431599,1753006232231,-164.50723438,0.00017692,2]
[373431600,1753006232241,-545.47591,0.000177,2]
[373431601,1753006232252,-1687.0,0.00017709,2]
[373431602,1753006232264,-595.0,0.00017709,2]
[373431603,1753006232274,-1167.0,0.00017709,2]
[373431604,1753006232283,-889.0,0.00017709,2]
[373431605,1753006232293,-500.0,0.00017773,2]
[373431606,1753006232303,-500.0,0.00017773,2]
[373431607,1753006232313,-500.0,0.00017773,2]
[373431608,1753006232323,-500.0,0.00017773,2]
[373431609,1753006232334,-2571.7663808,0.00017778,2]
[373431610,1753006232344,-7876.77832941,0.00017778,2]
[373431611,1753006232358,-31125.5951472,0.00017778,2]
[373431633,1753006237447,-1151.17317902,0.00017778,2]
[373431634,1753006237459,-356.8867292,0.00017778,2]
[373431635,1753006237472,-433.56222858,0.00017778,2]
[373431636,1753006237483,-47485.22613679,0.00017778,2]
[373431637,1753006237493,-500.0,0.00017781,2]
[373431638,1753006237502,-500.0,0.00017781,2]
[373431639,1753006237513,-500.0,0.00017781,2]
[373431640,1753006237522,-500.0,0.00017781,2]
[373431641,1753006237532,-500.0,0.00017781,2]
[373431642,1753006237541,-189.2339002,0.00017781,2]
[373431643,1753006237551,-612.35868459,0.00017781,2]
[373431644,1753006237560,-500.0,0.00017781,2]
[373431645,1753006237569,-498.2994,0.00017781,2]
[373431646,1753006237579,-500.0,0.00017781,2]
[373431647,1753006237588,-27185.86069367,0.00017781,2]
[373431648,1753006237598,-500.0,0.00017781,2]
[373431649,1753006237607,-273.2953325,0.00017781,2]
[373431650,1753006237617,-150.0,0.00017781,2]
[373431651,1753006237626,-500.0,0.00017781,2]
[373431652,1753006237637,-202.04412336,0.00017781,2]
[373431653,1753006237647,-914.0,0.00017781,2]
[373431654,1753006237656,-300.0,0.00017781,2]
[373431655,1753006237665,-300.0,0.00017781,2]
[373431656,1753006237674,-70185.16735431,0.00017782,2]
[373431657,1753006237686,-1185.07892937,0.00017782,2]
[373431658,1753006237697,-999.09474178,0.00017782,2]
[373431659,1753006237716,-74711.20645119,0.00017782,2]
[373431660,1753006237727,-174999.99953444,0.00017782,2]
[373431661,1753006237746,-1516.6390532,0.00017782,2]
[373431662,1753006237763,-1855.47225385,0.00017782,2]
[373431808,1753006239501,-686615.47042857,0.00017782,2]
[373431810,1753006239511,-1013.36815167,0.00017782,2]
[373431811,1753006239520,-151.0,0.00017782,2]
[373431812,1753006239529,-152.381266,0.00017782,2]
[373431813,1753006239539,-151.757563,0.00017782,2]
[373431814,1753006239549,-151.0,0.00017782,2]
[373431815,1753006239558,-288.738271,0.00017782,2]
[373431816,1753006239568,-151.0,0.00017782,2]
[373431817,1753006239578,-151.0,0.00017782,2]
[373431818,1753006239587,-151.0,0.00017782,2]
[373431819,1753006239597,-151.0,0.00017782,2]
[373431820,1753006239607,-151.0,0.00017782,2]
[373431821,1753006239617,-153.335233,0.00017782,2]
[373431822,1753006239626,-151.0,0.00017782,2]
[373431823,1753006239636,-151.0,0.00017782,2]
[373431824,1753006239645,-153.691284,0.00017782,2]
[373431825,1753006239654,-151.0,0.00017782,2]
[373431826,1753006239663,-168.463839,0.00017782,2]
[373431827,1753006239673,-168.463839,0.00017782,2]
[373431828,1753006239682,-151.0,0.00017782,2]
[373431829,1753006239691,-151.0,0.00017782,2]
[373431830,1753006239701,-151.0,0.00017782,2]
[373431831,1753006239710,-194.940375,0.00017782,2]
[373431832,1753006239720,-194.940375,0.00017782,2]
[373431833,1753006239729,-150.0,0.00017782,2]
[373431834,1753006239738,-150.0,0.00017782,2]
[373431835,1753006239748,-150.46319091,0.00017782,2]
[373431836,1753006239758,-500.0,0.00017782,2]
[373431837,1753006239768,-150.0,0.00017782,2]
[373431838,1753006239779,-516.0,0.00017782,2]
[373431839,1753006239788,-500.0,0.00017782,2]
[373431840,1753006239798,-500.0,0.00017782,2]
[373431841,1753006239808,-3649.0,0.00017782,2]
[373431842,1753006239818,-160.25758376,0.00017782,2]
[373431843,1753006239827,-500.0,0.00017782,2]
[373431844,1753006239837,-1814.0,0.00017782,2]
[373431845,1753006239847,-500.0,0.00017782,2]
[373431846,1753006239857,-545.47591,0.00017782,2]
[373431847,1753006239866,-545.47592,0.00017782,2]
[373431848,1753006239876,-157.11273063,0.0001779,2]
[373431849,1753006239885,-4126.0,0.00017809,2]
[373431850,1753006239895,-862.0,0.00017809,2]
[373431851,1753006239904,-21364.0,0.00017809,2]
[373431852,1753006239913,-6050.0,0.00017809,2]
[373431853,1753006239923,-545.47592,0.0001782,2]
[373431854,1753006239932,-546.41278055,0.00017844,2]
[373431855,1753006239942,-168.0,0.00017863,2]
[373431856,1753006239951,-168.0,0.00017875,2]
[373431857,1753006239961,-426.61131801,0.00017904,2]
[373431858,1753006239970,-168.0,0.0001792,2]
[373431859,1753006239980,-545.47591,0.0001795,2]
[373431861,1753006239989,-168.0,0.00017964,2]
[373431863,1753006240002,-177.31093282,0.00017974,2]
[373431864,1753006240012,-4154.63541092,0.00017988,2]
[373431866,1753006240022,-294.98678343,0.00017988,2]
[373431868,1753006240031,-308.29519376,0.00017988,2]
[373431870,1753006240040,-241.26704367,0.00017988,2]
[373431872,1753006240049,-484.88693602,0.00017988,2]
[373431873,1753006240059,-151.0,0.00017989,2]
[373431875,1753006240069,-151.0,0.00017989,2]
[373431876,1753006240079,-151.638152,0.00017989,2]
[373431878,1753006240088,-151.0,0.00017989,2]
[373431880,1753006240097,-151.561463,0.00017989,2]
[373431882,1753006240106,-151.0,0.00017989,2]
[373431884,1753006240116,-151.0,0.00017989,2]
[373431886,1753006240125,-151.0,0.00017989,2]
[373431888,1753006240135,-262.35893,0.00017989,2]
[373431890,1753006240145,-151.0,0.00017989,2]
[373431892,1753006240154,-151.0,0.00017989,2]
[373431894,1753006240164,-151.0,0.00017989,2]
[373431896,1753006240173,-151.0,0.00017989,2]
[373431898,1753006240182,-194.940375,0.00017989,2]
[373431900,1753006240192,-194.940375,0.00017989,2]
[373431902,1753006240201,-176770.23852261,0.00017989,2]
[373431903,1753006240210,-168.0,0.0001799,2]
[373431905,1753006240221,-150.0,0.00018,5]
[373431907,1753006240231,-299.0,0.00018,3]
[373431909,1753006240240,-151.0,0.00018,2]
[373431911,1753006240250,-151.0,0.00018,2]
[373431913,1753006240259,-151.0,0.00018,2]
[373431915,1753006240269,-80121.67088032,0.00018,2]
[373431917,1753006240278,-134308.46201611,0.00018,2]
[373431919,1753006240287,-1161.01992887,0.00018,2]
[373431921,1753006240297,-151.0,0.00018,2]
[373431923,1753006240307,-151.0,0.00018,2]
[373431925,1753006240316,-151.0,0.00018,2]
[373431927,1753006240326,-285.66102,0.00018,2]
[373431929,1753006240335,-168.463839,0.00018,2]
[373431931,1753006240345,-168.463839,0.00018,2]
[373431933,1753006240355,-168.463839,0.00018,2]
[373431935,1753006240364,-168.463839,0.00018,2]
[373431937,1753006240374,-151.0,0.00018,2]
[373431939,1753006240383,-151.0,0.00018,2]
[373431941,1753006240393,-156.54539,0.00018,2]
[373431943,1753006240402,-194.940375,0.00018,2]
[373431945,1753006240411,-194.940375,0.00018,2]
[373431947,1753006240421,-49778.24858328,0.00018,2]
[373431949,1753006240431,-5590.83644851,0.00018,2]
[373431951,1753006240440,-200.416567,0.00018,2]
[373431953,1753006240450,-546.41278055,0.0001801,2]
[373431955,1753006240459,-151.0,0.00018045,2]
[373431957,1753006240468,-604.58324751,0.00018055,2]
[373431959,1753006240477,-201.07551686,0.00018055,2]
[373431961,1753006240487,-500.0,0.00018055,2]
[373431963,1753006240496,-914.0,0.00018055,2]
[373431965,1753006240505,-208.35873298,0.00018056,2]
[373431967,1753006240516,-200.75331276,0.00018056,2]
[373431969,1753006240526,-500.0,0.00018056,2]
[373431971,1753006240535,-150.0,0.00018056,2]
[373431973,1753006240544,-516.0,0.00018056,2]
[373431974,1753006240553,-500.0,0.00018056,2]
[373431976,1753006240563,-500.0,0.00018056,2]
[373431978,1753006240572,-3649.0,0.00018056,2]
[373431980,1753006240582,-500.0,0.00018056,2]
[373431982,1753006240591,-1814.0,0.00018056,2]
[373431984,1753006240600,-500.0,0.00018056,2]
[373431986,1753006240610,-545.47592,0.0001807,2]
[373431988,1753006240621,-1060.09071626,0.000181,2]
[373431990,1753006240630,-428.79,0.00018114,2]
[373431992,1753006240639,-168.0,0.00018123,2]
[373431994,1753006240649,-150.137,0.00018127,2]
[373431996,1753006240658,-150.0,0.00018127,2]
[373431998,1753006240667,-150.0,0.00018127,2]
[373432000,1753006240677,-150.132,0.00018127,2]
[373432002,1753006240686,-250.0,0.00018127,2]
[373432004,1753006240696,-253.434,0.00018127,2]
[373432005,1753006240705,-185.301,0.00018127,2]
[373432007,1753006240714,-203.154,0.00018127,2]
[373432008,1753006240723,-249.717,0.00018127,2]
[373432009,1753006240732,-205.879,0.00018127,2]
[373432010,1753006240741,-150.119,0.00018127,2]
[373432011,1753006240751,-3352.0,0.00018127,2]
[373432012,1753006240760,-952.0,0.00018127,2]
[373432013,1753006240769,-807.0,0.00018127,2]
[373432014,1753006240778,-2017.0,0.00018127,2]
[373432015,1753006241014,-961.0,0.00018127,2]
[373432016,1753006241025,-1268.0,0.00018127,2]
[373432017,1753006241035,-562.0,0.00018127,2]
[373432018,1753006241045,-1287.0,0.00018127,2]
[373432019,1753006241054,-163.47888036,0.00018147,2]
[373432020,1753006241063,-242675.11536242,0.00018161,2]
[373432021,1753006241073,-151.0,0.00018161,2]
[373432022,1753006241082,-168.463839,0.00018161,2]
[373432023,1753006241091,-168.463839,0.00018161,2]
[373432024,1753006241100,-151.0,0.00018161,2]
[373432025,1753006241109,-151.0,0.00018161,2]
[373432026,1753006241118,-151.987483,0.00018161,2]
[373432027,1753006241128,-151.0,0.00018161,2]
[373432028,1753006241137,-151.0,0.00018161,2]
[373432029,1753006241147,-151.0,0.00018161,2]
[373432030,1753006241157,-151.0,0.00018161,2]
[373432031,1753006241166,-151.0,0.00018161,2]
[373432032,1753006241175,-151.0,0.00018161,2]
[373432033,1753006241185,-151.0,0.00018161,2]
[373432034,1753006241194,-151.0,0.00018161,2]
[373432035,1753006241203,-151.0,0.00018161,2]
[373432036,1753006241213,-151.0,0.00018161,2]
[373432037,1753006241222,-151.0,0.00018161,2]
[373432038,1753006241231,-151.0,0.00018161,2]
[373432039,1753006241241,-151.0,0.00018161,2]
[373432040,1753006241250,-151.0,0.00018161,2]
[373432041,1753006241259,-151.0,0.00018161,2]
[373432042,1753006241269,-290.448088,0.00018161,2]
[373432043,1753006241279,-290.448088,0.00018161,2]
[373432044,1753006241288,-151.0,0.00018161,2]
[373432045,1753006241297,-174.042996,0.00018161,2]
[373432046,1753006241307,-151.0,0.00018161,2]
[373432047,1753006241316,-174.042996,0.00018161,2]
[373432048,1753006241326,-151.0,0.00018161,2]
[373432049,1753006241335,-151.703718,0.00018161,2]
[373432050,1753006241345,-151.0,0.00018161,2]
[373432051,1753006241354,-151.0,0.00018161,2]
[373432052,1753006241363,-151.0,0.00018161,2]
[373432053,1753006241373,-151.0,0.00018161,2]
[373432054,1753006241382,-151.0,0.00018161,2]
[373432055,1753006241391,-151.0,0.00018161,2]
[373432056,1753006241401,-151.0,0.00018161,2]
[373432057,1753006241410,-151.0,0.00018161,2]
[373432058,1753006241420,-151.0,0.00018161,2]
[373432059,1753006241429,-151.0,0.00018161,2]
[373432060,1753006241438,-151.0,0.00018161,2]
[373432061,1753006241447,-151.0,0.00018161,2]
[373432062,1753006241457,-151.0,0.00018161,2]
[373432063,1753006241466,-151.0,0.00018161,2]
[373432064,1753006241476,-151.0,0.00018161,2]
[373432065,1753006241486,-171.252412,0.00018161,2]
[373432066,1753006241496,-171.252412,0.00018161,2]
[373432067,1753006241505,-406.261279,0.00018161,2]
[373432068,1753006241515,-406.261279,0.00018161,2]
[373432069,1753006241524,-151.0,0.00018161,2]